Cogmind - Beta 15 *** ADVENTURER MODE // 2025.07.30 @ 11:44:10 Player: LegoMDS Result: Destroyed by HG-B1O(j) with Overtuned Pulse Rifle Performance ------------- Evolutions (1) 500 Regions Visited (6) 1200 Robots Destroyed (74) 370 Value Destroyed (1939) 1939 Prototype IDs (26) 520 Alien Tech Used (0) 0 Bonus (925) 925 TOTAL SCORE: 5454 Bonus ------- Follower Combat Kills 125 Registered with UFD 300 Met Optimus in HQ 500 Cogmind --------- Core Integrity 0/400 Matter 290/300 Energy 234/280 System Corruption 1% Temperature Warm (154) Movement Walking (100) Location -9/Scraptown Parts ------- > --- POWER (1) -------- Cooled Ion Engine > --- PROPULSION (2) --- Overtuned Titanium Leg Overtuned Titanium Leg > --- UTILITY (4) ------ Scrap Suit Medium Storage Unit A0-MCA's Component Scanner > --- WEAPON (2) ------- Overtuned Coil Gun Makeshift Spear > --- INVENTORY (10) --- Overtuned Titanium Leg Scrap Suit Advanced Signal Interpreter Expert System Makeshift Light Armor Plating Overtuned Pulse Rifle Plasma Cutter CPS Tube (2) Voltaic Drivehammer (3/40) Peak State ------------ > --- POWER ------------ Cooled Ion Engine > --- PROPULSION ------- Overtuned Titanium Leg Overtuned Titanium Leg > --- UTILITY ---------- Scrap Suit Medium Storage Unit A0-MCA's Component Scanner > --- WEAPON ----------- Voltaic Drivehammer Makeshift Spear > --- INVENTORY -------- Overtuned Titanium Leg Scrap Suit Advanced Signal Interpreter Expert System Makeshift Light Armor Plating Overtuned Pulse Rifle Overtuned Coil Gun Plasma Cutter CPS Tube [Rating: 45] Favorites ----------- Power Cooled Ion Engine Engine Cooled Ion Engine Power Core Light Nuclear Core Propulsion Improved Aluminum Leg Treads Overtuned Medium Treads Leg Improved Aluminum Leg Utility Small Storage Unit Device Scrap Suit Storage Small Storage Unit Processor A0-MCA's Component Scanner Protection Hardened Light Armor Plating Weapon Improved Lightning Gun Energy Gun Improved Lightning Gun Ballistic Gun Heavy Assault Rifle Ballistic Cannon Improved Light Cannon Special Weapon Plasma Cutter Impact Weapon Heavy Hammer Slashing Weapon Mining Claw Piercing Weapon Makeshift Spear Build | -11 -10 -10 -9 -9 -9 -9 ------- Run | Yrd Mat Min Mat Sto Rec Scr Slots Evolved 2 | . . . 2 . . . Power . | . . . . . . . Propulsion . | . . . . . . . Utility 2 | . . . 2 . . . Weapon . | . . . . . . . Parts Attached 43 | 4 2 . 13 8 . 16 Power 6 | 1 . . 3 1 . 1 Engine 5 | 1 . . 2 1 . 1 Core 1 | . . . 1 . . . Reactor . | . . . . . . . Propulsion 10 | 2 . . 3 . . 5 Treads 1 | . . . . . . 1 Leg 9 | 2 . . 3 . . 4 Wheel . | . . . . . . . Hover . | . . . . . . . Flight . | . . . . . . . Utility 10 | . 1 . 4 1 . 4 Device 3 | . . . 2 . . 1 Storage 2 | . 1 . . . . 1 Processor 2 | . . . . . . 2 Hackware . | . . . . . . . Protection 3 | . . . 2 1 . . Artifact . | . . . . . . . Weapon 17 | 1 1 . 3 6 . 6 Energy Gun 3 | . . . . 2 . 1 Energy Cannon . | . . . . . . . Ballistic Gun 7 | 1 1 . 1 1 . 3 Ballistic Cannon 1 | . . . 1 . . . Launcher . | . . . . . . . Special Weapon 2 | . . . . 1 . 1 Impact Weapon 2 | . . . . 2 . . Slashing Weapon 1 | . . . 1 . . . Piercing Weapon 1 | . . . . . . 1 Special Melee Weapon . | . . . . . . . Unidentified Prototypes 4 | . . . 2 2 . . Parts Lost 1 | . . . . . . 1 Power . | . . . . . . . Propulsion 1 | . . . . . . 1 Utility . | . . . . . . . Weapon . | . . . . . . . Highest Loss Streak 1 | . . . . . . 1 To Critical Strikes . | . . . . . . . Average Backups 7 | 3 5 6 7 8 8 8 Power . | . 1 1 . . . . Propulsion . | . . . . 1 1 . Utility 4 | . 1 2 4 5 5 4 Weapon 1 | 1 2 3 1 1 1 1 Tool/Special . | . . . . . . . Unused Backups 18 | . . 2 3 . . 13 Power 1 | . . . 1 . . . Propulsion . | . . . . . . . Utility 11 | . . . 1 . . 10 Weapon 4 | . . 2 1 . . 1 Tool/Special 2 | . . . . . . 2 Average Slot Usage (%) 87 | . 83 85 87 87 88 87 Engine 9 | . 14 14 5 5 11 10 Core 2 | . . . 5 4 . . Leg 22 | . 28 28 22 22 22 21 Device 9 | . . . 10 11 11 11 Storage 11 | . 13 14 11 11 11 11 Processor 1 | . . . . . . 3 Protection 8 | . . . 10 11 11 7 Energy Gun 10 | . . . 1 16 21 11 Ballistic Gun 8 | . 27 28 10 . . 10 Ballistic Cannon 3 | . . . 10 3 . . Peak Build Rating 45 | 4 6 8 28 28 28 45 Average Rating 26 | 2 5 6 21 26 28 34 On Entrance 14 | . 4 6 8 24 28 28 Naked Turns . | . . . . . . . Heaviest Build 38 | 5 11 11 28 30 30 38 Greatest Support 38 | 20 20 20 26 26 26 38 Greatest Overweight (x) 1 | . . . 1 1 1 1 Average Overweight (x) . | . . . . . 1 . Largest Inventory Capacity 10 | 5 8 8 8 8 8 10 Average Capacity 8 | 5 7 8 8 8 8 8 Most Carried 10 | 5 6 8 8 8 8 10 Average Carried 7 | 3 5 7 7 8 8 8 Final Capacity 10 | 5 8 8 8 8 8 10 Final Carried 10 | 4 6 8 8 8 8 10 Class Distribution -------------------- 84% | Mutant 15% | Scrapper Dominant Class ---------------- Mutant | -10/Materials Mutant | -10/Mines Mutant | -9/Materials Mutant | -9/Storage Mutant | -9/Recycling Mutant | -9/Scraptown Resources | -11 -10 -10 -9 -9 -9 -9 ----------- Run | Yrd Mat Min Mat Sto Rec Scr Matter Collected 1517 | 203 . 16 617 344 45 292 Remotely . | . . . . . . . Salvage Created 2180 | . . 44 788 958 52 338 Parts 172 | . . 6 64 82 2 18 Haulers Intercepted 7 | . . . 3 4 . . Recyclers Shooed 2 | . . . . 2 . . Parts Field Recycled . | . . . . . . . Retrieved Matter . | . . . . . . . Parts Self-Destructed . | . . . . . . . Prevented . | . . . . . . . Kills | -11 -10 -10 -9 -9 -9 -9 ------- Run | Yrd Mat Min Mat Sto Rec Scr Combat Hostiles Destroyed 56 | . . 3 21 26 1 5 Guns 36 | . . 3 11 18 1 3 Cannons 18 | . . . 10 8 . . Classes Destroyed 12 | . . 1 6 2 . 3 Worker 1 | . . . . 1 . . Tunneler 1 | . . . 1 . . . Hauler 7 | . . . 3 4 . . Mechanic 1 | . . . . 1 . . Operator 2 | . . . 1 1 . . Watcher 6 | . . . 4 2 . . Swarmer 19 | . . 3 6 10 . . Grunt 14 | . . . 10 4 . . Sentry 18 | . . . 5 12 1 . Bolteater 1 | . . . . . . 1 Guru 1 | . . . . . . 1 Scrapper 3 | . . . . . . 3 Best Kill Streak 6 | . . 3 6 6 1 1 Combat Bots Only 6 | . . 3 6 5 1 1 Max Kills in Single Turn 2 | . . 1 2 2 1 1 Gunslinging . | . . . . . . . Exploded . | . . . . . . . Melee . | . . . . . . . Uniques/NPCs Destroyed . | . . . . . . . Combat | -11 -10 -10 -9 -9 -9 -9 -------- Run | Yrd Mat Min Mat Sto Rec Scr Hostile Shots Fired 320 | . 4 9 87 100 2 118 Missed 81 | . 3 2 28 30 . 18 Hits 239 | . 1 7 59 70 2 100 Melee 31 | . . . . . . 31 Projectile 208 | . 1 7 59 70 2 69 Critical Strikes 6 | . . . . 4 . 2 Damage Taken 2336 | . 8 46 544 530 25 1183 Core 432 | . . 22 93 47 . 270 Absorbed by Shields . | . . . . . . . Ignored by Resistances 689 | . 2 14 168 167 7 331 Regen/Repaired (Parts) 141 | . . . 4 110 . 27 Core Remaining (%) 95 | 100 . 91 . . . . Volleys Fired 162 | . 1 4 65 75 2 15 Largest 2 | . 2 2 2 2 2 2 Hottest 132 | . 40 40 98 125 125 132 Shots Fired 295 | . 2 8 130 124 3 28 Gun 190 | . 2 8 65 84 3 28 Cannon 105 | . . . 65 40 . . Launcher . | . . . . . . . Special . | . . . . . . . Kinetic 188 | . 2 8 125 40 . 13 Thermal 81 | . . . 5 60 1 15 Explosive . | . . . . . . . Electromagnetic 26 | . . . . 24 2 . Robot Hit Streak 14 | . 1 4 12 14 4 8 Robot Miss Streak 9 | . 1 1 3 9 2 1 Penetration Max . | . . . . . . . Secondary Targets 2 | . . 1 . . . 1 Max Gunslinging Chain 1 | . . 1 . . . 1 Shots Hit Robots 220 | . 1 6 89 94 3 27 Core Hits 152 | . 1 4 39 96 4 8 Critical Kills 1 | . . . 1 . . . Critical Parts Destroyed 2 | . . . . . . 2 Critical Strikes 6 | . . . 1 1 . 4 Burn 2 | . . . . . . 2 Destroy 3 | . . . 1 . . 2 Corrupt 1 | . . . . 1 . . Melee Attacks 14 | . . . 4 3 . 7 Impact 8 | . . . . 3 . 5 Slashing 4 | . . . 4 . . . Piercing 2 | . . . . . . 2 Sneak Attacks . | . . . . . . . Combat Hostiles . | . . . . . . . Follow-up Attacks . | . . . . . . . Damage Inflicted 4272 | . 9 64 1668 1818 63 650 Guns 2490 | . 9 64 676 1176 63 502 Cannons 1561 | . . . 992 569 . . Explosions 73 | . . . . 73 . . Melee 148 | . . . . . . 148 Ramming . | . . . . . . . Kinetic 2474 | . 9 64 1591 569 . 241 Thermal 1214 | . . . 77 855 21 261 Explosive . | . . . . . . . Electromagnetic 436 | . . . . 394 42 . Impact 135 | . . . . . . 135 Slashing . | . . . . . . . Piercing 13 | . . . . . . 13 Highest Corruption 1 | . . . 1 1 1 1 Average Corruption 1 | . . . 1 1 1 1 Corruption Purged . | . . . . . . . Corruption Blocked . | . . . . . . . Effects 25 | . . . 3 11 10 1 Message Errors 11 | . . . 1 4 6 . Matter Fused 6 | . . . . 3 3 . Energy Discharges 2 | . . . . 2 . . Data Loss (minor) 3 | . . . 2 . . 1 Data Loss (major) 1 | . . . . 1 . . Misfires 1 | . . . . 1 . . Weapon Failures 1 | . . . . . 1 . Overload Shots . | . . . . . . . Overflow Damage 74 | . . . 11 14 . 49 Projectiles 25 | . . . 11 14 . . Explosions . | . . . . . . . Melee 49 | . . . . . . 49 Knockbacks 7 | . . . 6 1 . . Impact . | . . . . . . . Kinetic 6 | . . . 5 1 . . Secondary 1 | . . . 1 . . . Self-Inflicted Damage . | . . . . . . . Shots . | . . . . . . . Rammed . | . . . . . . . Targets Rammed . | . . . . . . . Kicked . | . . . . . . . Crushed . | . . . . . . . Highest Temperature 364 | . . . 258 307 72 364 Average Temperature 83 | . . . 34 97 51 136 Received Heat Transfer 1039 | . . . 249 168 9 613 Effects 5 | . . . . 3 . 2 Energy Bleed 2 | . . . . . . 2 Interference 3 | . . . . 3 . . Siege Activations . | . . . . . . . Martial Activations . | . . . . . . . Shielding Activations . | . . . . . . . Robots Disrupted . | . . . . . . . Combat Hostiles . | . . . . . . . Robots Corrupted 1 | . . . . . . 1 Combat Hostiles 1 | . . . . . . 1 Parts Fried 2 | . . . . 1 . 1 Impact Corruptions 2 | . . . . . . 2 Robots Melted 1 | . . . . . . 1 Combat Hostiles 1 | . . . . . . 1 Parts Melted 4 | . . . . . . 4 Heat Transferred 1791 | . . . 100 1085 25 581 Parts Sabotaged . | . . . . . . . Parts Stolen 3 | . . . . . . 3 Parts Stripped . | . . . . . . . Power Chain Reactions 2 | . . . . 2 . . Alert | -11 -10 -10 -9 -9 -9 -9 ------- Run | Yrd Mat Min Mat Sto Rec Scr Maximum Alert Level 1 | . . . . 1 . . Low Security (%) 86 | 100 100 100 100 51 100 . Level 1 13 | . . . . 48 . . Level 2 . | . . . . . . . Level 3 . | . . . . . . . Level 4 . | . . . . . . . Level 5 . | . . . . . . . High Security . | . . . . . . . Max Security . | . . . . . . . Peak Influence 310 | . 3 64 170 310 50 . Initial 50 | . . . 17 . 50 . Average 67 | . . 3 48 175 3 . Influence Increases 1750 | . 3 74 752 889 32 . Destroy 0b10 Robot/C 1120 | . . 60 520 520 20 . Destroy 0b10 Robot/NC 95 | . . . 50 45 . . Destroy Leader 328 | . . 10 136 182 . . Allied During Kill 23 | . . 4 19 . . . Successful Hack 96 | . 3 . 25 56 12 . Disable Machine 81 | . . . . 81 . . Destroy Structure 7 | . . . 2 5 . . Influence Decreases 1750 | . 3 20 803 739 185 . Entered New Map 143 | . . . 37 3 103 . Time Decay 1547 | . 3 20 726 716 82 . Lost Ally 60 | . . . 40 20 . . Squads Dispatched 8 | . 1 . 4 3 . . Investigation 4 | . 1 . 2 1 . . Extermination . | . . . . . . . Reinforcement 3 | . . . 2 1 . . Assault . | . . . . . . . Garrison 1 | . . . . 1 . . Intercept . | . . . . . . . Searches Triggered . | . . . . . . . Construction Impeded . | . . . . . . . Haulers Reinforced . | . . . . . . . Active Scanning Responses . | . . . . . . . Cargo Convoy Interrupts . | . . . . . . . Stealth | -11 -10 -10 -9 -9 -9 -9 --------- Run | Yrd Mat Min Mat Sto Rec Scr Distress Signals 5 | . . . 2 3 . . Communications Jammed . | . . . . . . . Distress Signals . | . . . . . . . Times Spotted 101 | . 3 3 36 38 1 20 Peak Tracking Total 11 | . 5 2 6 5 1 11 Tactical Retreats . | . . . . . . . Traps | -11 -10 -10 -9 -9 -9 -9 ------- Run | Yrd Mat Min Mat Sto Rec Scr Traps Triggered 4 | . 1 . 2 1 . . Indirectly . | . . . . . . . Trap Hack Attempts . | . . . . . . . Triggered . | . . . . . . . Disarmed . | . . . . . . . Reprogrammed . | . . . . . . . Reused . | . . . . . . . Traps Extracted . | . . . . . . . Installed . | . . . . . . . Triggered . | . . . . . . . Machines | -11 -10 -10 -9 -9 -9 -9 ---------- Run | Yrd Mat Min Mat Sto Rec Scr Machines Disabled 13 | . . . 1 9 . 3 Max in Single Turn 2 | . . . 1 1 . 2 Garrison Access 1 | . . . . 1 . . Machines Repaired . | . . . . . . . Machines Dismantled 1 | . . . . 1 . . Machines Sabotaged . | . . . . . . . Overloaded Fab Kills . | . . . . . . . Hacking | -11 -10 -10 -9 -9 -9 -9 --------- Run | Yrd Mat Min Mat Sto Rec Scr Machines Accessed 37 | . 5 1 7 12 4 8 Terminals 24 | . 5 . 6 9 4 . Fabricators . | . . . . . . . Repair Stations 2 | . . . . 2 . . Recycling Units . | . . . . . . . Scanalyzers 1 | . . . 1 . . . Garrison Access 1 | . . . . 1 . . Total Hacks 124 | . 12 1 27 26 10 48 Successful 100 | . 8 1 20 18 5 48 Failed 24 | . 4 . 7 8 5 . Catastrophic 3 | . . . . 1 2 . Database Lockouts . | . . . . . . . Manual 3 | . 1 . 1 1 . . Terminals 59 | . 12 . 17 20 10 . Fabricators . | . . . . . . . Repair Stations 5 | . . . . 5 . . Recycling Units . | . . . . . . . Scanalyzers 10 | . . . 10 . . . Garrison Access 1 | . . . . 1 . . Terminal Hacks 84 | . 7 1 9 14 5 48 Record 47 | . . . . . . 47 Part Schematic 4 | . . . . 3 1 . Robot Schematic 1 | . . . . 1 . . Prototype ID Bank 5 | . 2 . 2 . 1 . Open Door 4 | . . 1 . 3 . . Branch Access Points 2 | . 1 . 1 . . . Emergency Access Points 1 | . 1 . . . . . Recycling Unit Index 1 | . . . . 1 . . Recall Reinforcements 1 | . . . 1 . . . Hauler Manifests 6 | . 1 . 2 3 . . Registered Components 3 | . 1 . 1 . 1 . Registered Prototypes 1 | . . . 1 . . . Zone Layout 7 | . 1 . 1 3 2 . Proto ID Catalog 1 | . . . . . . 1 Fabricator Hacks . | . . . . . . . Repair Station Hacks 2 | . . . . 2 . . Scan Component 1 | . . . . 1 . . Repair 1 | . . . . 1 . . Recycling Unit Hacks . | . . . . . . . Scanalyzer 10 | . . . 10 . . . Insert Component 5 | . . . 5 . . . Analyze 5 | . . . 5 . . . Garrison Access Hacks 1 | . . . . 1 . . Seal Access 1 | . . . . 1 . . Unauthorized Hacks 3 | . 1 . 1 1 . . Terminals 2 | . 1 . 1 . . . Botnet 2 | . 1 . 1 . . . Fabricators . | . . . . . . . Repair Stations 1 | . . . . 1 . . Patch 1 | . . . . 1 . . Recycling Units . | . . . . . . . Scanalyzers . | . . . . . . . Garrison Access . | . . . . . . . Data Cores Recovered . | . . . . . . . Used . | . . . . . . . Hacking Detections 19 | . 5 . 4 7 3 . Full Trace Events 3 | . . . 2 . 1 . Feedback Events . | . . . . . . . Feedback Blocked . | . . . . . . . Robot Schematics Acquired 1 | . . . . 1 . . Robots Built . | . . . . . . . Authchips . | . . . . . . . Time . | . . . . . . . Total Robot Build Rating . | . . . . . . . Part Schematics Acquired 8 | . . . 4 3 1 . Parts Built . | . . . . . . . Authchips . | . . . . . . . Time . | . . . . . . . Total Part Build Rating . | . . . . . . . Parts Repaired 1 | . . . . 1 . . Time 38 | . . . . 38 . . Parts Recycled . | . . . . . . . Recycled Matter . | . . . . . . . Retrieved Matter . | . . . . . . . Retrieved Components . | . . . . . . . Parts Scanalyzed 4 | . . . 4 . . . Part Schematics Acquired 4 | . . . 4 . . . Parts Damaged . | . . . . . . . Bothacking | -11 -10 -10 -9 -9 -9 -9 ------------ Run | Yrd Mat Min Mat Sto Rec Scr Used RIF Installer . | . . . . . . . Robots Hacked . | . . . . . . . Non-combat . | . . . . . . . Combat . | . . . . . . . Robot Hacks Applied . | . . . . . . . Relay Couplers Released . | . . . . . . . Fabnet Peak Effective % . | . . . . . . . Robots Rewired . | . . . . . . . Allies Hacked . | . . . . . . . Hacks Repelled . | . . . . . . . Allies | -11 -10 -10 -9 -9 -9 -9 -------- Run | Yrd Mat Min Mat Sto Rec Scr Total Allies 4 | . . 4 . . . . Largest Group 4 | . . 4 3 1 . . Highest-Rated Group 71 | . . 71 40 16 . . Highest-Rated Ally 31 | . . 31 16 16 . . Total Orders . | . . . . . . . Ally Attacks 67 | . . . 51 16 . . Total Damage 584 | . . . 412 172 . . Kills 6 | . . . 6 . . . Allies Corrupted . | . . . . . . . Allies Melted 4 | . . . . . . 4 Intel | -11 -10 -10 -9 -9 -9 -9 ------- Run | Yrd Mat Min Mat Sto Rec Scr Active Infowar (turns) . | . . . . . . . Robot Analysis Total . | . . . . . . . Derelict Logs Recovered 1 | . . 1 . . . . Drone Launches . | . . . . . . . Drone Recoveries . | . . . . . . . Exploration | -11 -10 -10 -9 -9 -9 -9 ------------- Run | Yrd Mat Min Mat Sto Rec Scr Turns Passed 7977 | 45 289 384 1822 1459 1172 2806 Spaces Moved 4499 | 33 211 295 702 692 601 1965 Core 8 | 8 . . . . . . Treads . | . . . . . . . Legs 4491 | 25 211 295 702 692 601 1965 Wheels . | . . . . . . . Hover . | . . . . . . . Flight . | . . . . . . . Fastest Speed 50 | 50 120 120 120 120 190 100 Average Speed 148 | 103 120 120 151 161 190 136 Slowest Speed 190 | 120 120 120 190 190 190 190 Overloaded Moves . | . . . . . . . Propulsion Burnouts . | . . . . . . . Robots Hopped . | . . . . . . . Potential Cave-ins . | . . . . . . . Cave-ins Triggered . | . . . . . . . Exploration Rate (%) 65 | 4 44 64 67 93 99 88 Regions Visited 6 Branch Regions 4 Pre-discovered Areas . | . . . . . . . Known Exits Taken 2 | . 1 . 1 . . . Unknown Exits Taken 4 | 1 . 1 . 1 1 . Scrap Searched 5 | . . . . . . 5 Spaces Dug 2 | . . . 2 . . . Terrain Destroyed 18 | . . . 3 3 . 12 Melee 2 | . . . 2 . . . Projectile 14 | . . . 1 1 . 12 AOE 2 | . . . . 2 . . Terrain Rammed . | . . . . . . . Walls Destroyed . | . . . . . . . Machines Disabled . | . . . . . . . Actions | -11 -10 -10 -9 -9 -9 -9 --------- Run | Yrd Mat Min Mat Sto Rec Scr Total 5499 | 44 245 319 1323 885 625 2058 Wait 659 | . 28 16 512 82 21 . Move 4493 | 32 210 294 701 691 600 1965 Hop . | . . . . . . . Pick Up 43 | 8 4 3 10 . . 18 Fast Attach 21 | . . . 1 9 . 11 Attach 9 | 4 2 . 2 . . 1 Detach . | . . . . . . . Swap 31 | . . . 12 5 1 13 Drop 57 | . . 2 16 11 . 28 Fire 162 | . 1 4 65 75 2 15 Melee 14 | . . . 4 3 . 7 Ram . | . . . . . . . Kick . | . . . . . . . Crush . | . . . . . . . Escape Stasis . | . . . . . . . Rewire . | . . . . . . . Trap . | . . . . . . . Miscellaneous 10 | . . . . 9 1 . Route ------- -11/Scrapyard -10/Materials (discovered 2 exits: *Min x2) -10/Mines -9/Materials (discovered 5 exits: [*Mat x2] / *Min x2 / *Sto) -9/Storage (discovered 2 exits: [*Mat] / *Rec) -9/Recycling (discovered 2 exits: [*Fac] / *Scr) -9/Scraptown History --------- Turn | Location | Event 27 | -11/Scrapyard | Discovered new exit (range 14) 46 | -11/Scrapyard | Entered Materials 62 | -10/Materials | Identified exit to Mines 300 | -10/Materials | Build established: Mutant 335 | -10/Materials | Entered Mines 338 | -10/Mines | Received a Mining Laser from a helpful Derelict 517 | -10/Mines | Assisted by bots powering up and referring to "LRC-V3" 550 | -10/Mines | Found a Scrap Suit stashed away for nefarious purposes 555 | -10/Mines | Found Scrap Suit 601 | -10/Mines | Learned Materials non-interactive machine intel 639 | -10/Mines | Found the Drone Emporium 647 | -10/Mines | Found Prototype Device 706 | -10/Mines | Discovered new exit (range 4) 719 | -10/Mines | Entered Materials 719 | -9/Materials | Accompanied by 3 allies 719 | -9/Materials | Evolved 2 slots: Utility x2 720 | -9/Materials | Loaded intel: 27 non-interactive machine locations 1123 | -9/Materials | Discovered new exit (range 7) 1705 | -9/Materials | Identified exit to Mines 1705 | -9/Materials | Identified exit to Storage 2045 | -9/Materials | Discovered new exit (range 14) 2323 | -9/Materials | Discovered new exit (range 14) 2462 | -9/Materials | Identified Thief Drone Bay 2541 | -9/Materials | Entered Storage 2541 | -9/Storage | Accompanied by 1 ally 2931 | -9/Storage | Repaired Lgt. Nuclear Core 2969 | -9/Storage | Discovered new exit (range 16) 3629 | -9/Storage | Garrison activated, responded to threat 3993 | -9/Storage | Discovered new exit (range 3) 4000 | -9/Storage | Entered Recycling 4858 | -9/Recycling | Discovered new exit (range 16) 5124 | -9/Recycling | Scanned before Scraplab entrance 5151 | -9/Recycling | Entered Scraplab 5168 | -9/Recycling | Discovered new exit (range 2) 5172 | -9/Recycling | Entered Scraptown 5172 | -9/Scraptown | System corruption cleaned by C-Scrubber 5425 | -9/Scraptown | Visited UFD Registry 5425 | -9/Scraptown | Registered with UFD as "Quantumrigger" 5475 | -9/Scraptown | Visited SPCMW 5509 | -9/Scraptown | Heard Great Nut preacher, LISTEN AND RECITE! 5541 | -9/Scraptown | Visited Supply Room 5600 | -9/Scraptown | Visited Cyclists 5615 | -9/Scraptown | Entered Cyclist Reading Room 6094 | -9/Scraptown | Visited Assassins FH 6105 | -9/Scraptown | Visited Shadow of the Wyrm 6134 | -9/Scraptown | Visited Junk Repository 6194 | -9/Scraptown | Visited Science Testing Area 6263 | -9/Scraptown | Visited Research Penetration Think Tank 6339 | -9/Scraptown | Visited Cartography Club 6385 | -9/Scraptown | Found Surveybot 17 Chip 6523 | -9/Scraptown | Visited A0-MCA Data Center 6555 | -9/Scraptown | Given an A- rating by A0-MCA 6573 | -9/Scraptown | Found A0-MCA's Component Scanner 6612 | -9/Scraptown | Visited Junk Repository 6709 | -9/Scraptown | Visited Modified Component R&D 6784 | -9/Scraptown | Visited Observation Area 6825 | -9/Scraptown | Visited Scrapoid Pod Storage 6845 | -9/Scraptown | Visited Supply Room 6869 | -9/Scraptown | Visited Abandonware Association 6882 | -9/Scraptown | Learned abandonware demo "SHUTEYE.EXE" 6882 | -9/Scraptown | Learned abandonware demo "REBOOT5.EXE" 6904 | -9/Scraptown | Visited Science Guys 7033 | -9/Scraptown | Build established: Scrapper 7096 | -9/Scraptown | Found Scrap Suit 7650 | -9/Scraptown | Met Optimus 7650 | -9/Scraptown | Accepted into 0bPrime 7727 | -9/Scraptown | Civil war broke out across Scraptown 7759 | -9/Scraptown | Found Voltaic Drivehammer 7787 | -9/Scraptown | Lost 3 allies 7810 | -9/Scraptown | Found Scrap Suit 7843 | -9/Scraptown | Lost 3 allies 7865 | -9/Scraptown | Found Expert System 7943 | -9/Scraptown | Core integrity fell below 50% 7975 | -9/Scraptown | Core integrity fell below 20% 7978 | -9/Scraptown | Destroyed by HG-B1O(j) with Overtuned Pulse Rifle Last Messages --------------- Acquired 12 matter. Bolt penetrates TK-W7S(j). Critical hit (Burn: +50). Acquired 10 matter. HG-B1O(j) heat damages Scrap Suit. Critical hit (Impale). System corrupted: Component data lost. Acquired 10 matter. Ovr. Titanium Leg destroyed. Acquired 10 matter. 4U-MB1(x) suffers critical hit (Burn). Scrap Suit cannibalized Ovr. Titanium Leg to repair Ovr. Titanium Leg. Penetrated by Bolt. Scrap Suit cannibalized Ovr. Titanium Leg to repair Ovr. Titanium Leg. TK-W7S(j) cannibalizes Ovr. Titanium Leg to repair Ovr. Titanium Leg. Acquired Ovr. Titanium Leg. Penetrated by Bolt. Map ----- +----------------------------------------------------+ | | | | | | | | | | | | | | | ?????????????????????????????????????????????????? | | ?????????????????????????????????????????????????? | | ?????????????????????????????????????????????????? | | ?????????????????????????????????????????????????? | | ?????????????????????????????????????????????????? | | ?????????????????????????????????????????????????? | | ?????????????????????????????????????????????????? | | ?????????????????????????????????????????????????? | | ?????????????????????????????????????????????????? | | ????????????????????????###??????????????????????? | | ????????????????????????# #??????????????????????? | | ????????????????????????# #??????????????????????? | | ????????????????????????# #??????????????????????? | | ????????????????#####???#;##?????????????????????? | | ????????????????#"""#??## %##????????#???????????? | | ???????????#""|##!!"####=![!######% [##??????????? | | ???? [!%![%%jjg%/%!% jh %*!%!=#??????????? | | ???? !%*/!!!=%jj= ! x=[jg=!* [ #??????????? | | ???????#########"#######[@x!###########??????????? | | ???????????????????????##%*##############????????? | | ????????????????????????#!!;""""""""""""#????????? | | ?????########??????????## # " #"""""""#????????? | | ???#"""""""""#?????????#; # # = " "#????????? | | ???#"""""""""#?????????#;!=####+#[ [ "#????????? | | ???#"""""""""#?????????#;!!#""" "#????????? | | ???#""" """""#?????????#=%=#"= ] "#????????? | | ???#""" !"""############!=#"" """""#????????? | | ???#""" """##/]#!] #!!# [#" "#####????????? | | ???#" " """##!!#!!!#= #% #X """""#????????? | | ???#""! """"## # #[!# ## = = #????????? | | ???#"" """## # #" #????????? | | ???# "## # #" #????????? | | ???###"*########### ##### ## ###########????????? | | #######%=########## ##### ## ###############????? | | """""""!%""""""""""*"" "[!="="## """"""""""#????? | | *!! !%=% |=*%!% "# " "#????? | | ! !*[=%*!! =!!"# """""" "#????? | | ! *=!%=*!! ## "????" "#????? | | [[=[%%=*# "????" "#????? | | ! !!=[=%![ "????" "#????? | | """"""""""" """"""""""""" ! ""#!% """""" "#????? | | """"""""""""""""""""""""" ! ## "#????? | | ##### ################"" =%[ ## """ """""#????? | +----------------------------------------------------+ Best States ------------- Heat Dissipation 28 Energy Generation 14 Energy Capacity 280 Matter Stores 300 Matter Capacity 300 Sight Range 16 Terrain Scan Density 10 Armor Coverage 150 Resistance: KI 20 Resistance: TH 20 Resistance: EX 20 Resistance: EM 20 Resistance: I 20 Resistance: S 20 Resistance: P 20 Utility Shielding 33 Evasion (%) 55 Offensive Hacking 10 Item Schematics ----------------- Hacking Suite | -9/Materials | Scanalyzed Imp. Aluminum Leg | -9/Materials | Scanalyzed Cooling System | -9/Materials | Scanalyzed Plasma Cutter | -9/Materials | Scanalyzed Hvy. Armor Plating | -9/Storage | Hacked Imp. Cooling System | -9/Storage | Hacked Shield Generator | -9/Storage | Hacked Target Analyzer | -9/Recycling | Hacked Robot Schematics ------------------ M-13 Machinist | -9/Storage | Hacked Fabricated ------------ Nothing Repaired ---------- Lgt. Nuclear Core | 40% | -9/Storage Alien Tech Used ----------------- None Achievements -------------- None Challenges ------------ None Game ------ Seed SplicePitchforkClaws Manual? 0 Play Time 00:54:50 Cumulative 90.4 hours Start 2025.07.30 @ 10:51:34 End 2025.07.30 @ 11:44:10 Sessions 1 Manual Loads 0 Difficulty Adventurer Special Mode None Game No. 121 Rogue 13 Adventurer 108 Explorer 0 Win Type - Total 0 Types 0/0/0/0/0/0/0/0/0/0 Lore% 66 Gallery% 60 Achievement% 46 Wizard Run 0 Options --------- Layout 1 ASCII 0 Keyboard 0 Movement Mouse Keybinds 0 Fullscreen 1 Font 32/SmallcapsGlow Map View 50x35 Zoom Use 0% Tactical HUD 0 Map Filters NONE Filters NONE Steam 1 RUN: a599e441-3d97-40f6-89c7-dd5589903719